[Event "Sera di Lampi"]
[Site "Chess.com"]
[Date "2020.04.18"]
[Round "1"]
[White "rob_fio"]
[Black "SpessoInstabile"]
[Result "1-0"]
[WhiteElo "1671"]
[BlackElo "1345"]
[TimeControl "300+2"]
[EndTime "11:35:28 PDT"]
[Termination "rob_fio ha vinto per scaccomatto"]

1. d4 {[%clk 0:05:01.9]} 1... c5 {[%clk 0:04:59.5]} 2. c3 {[%clk 0:05:02.7]}
2... cxd4 {[%clk 0:05:00.3]} 3. cxd4 {[%clk 0:05:04.6]} 3... e6 {[%clk
0:05:01.6]} 4. e3 {[%clk 0:05:05.7]} 4... a6 {[%clk 0:05:02.8]} 5. Bd3 {[%clk
0:05:07.2]} 5... Qc7 {[%clk 0:05:04]} 6. f4 {[%clk 0:05:08]} 6... d6 {[%clk
0:05:05.1]} 7. Nf3 {[%clk 0:05:09.1]} 7... Nf6 {[%clk 0:05:06]} 8. Nbd2 {[%clk
0:05:10.3]} 8... Nbd7 {[%clk 0:05:07.2]} 9. O-O {[%clk 0:05:11.5]} 9... b5
{[%clk 0:05:08.4]} 10. a3 {[%clk 0:05:12.7]} 10... Bb7 {[%clk 0:05:09.7]} 11. b4
{[%clk 0:05:13.4]} 11... Be7 {[%clk 0:05:10.5]} 12. Bb2 {[%clk 0:05:14.4]} 12...
O-O {[%clk 0:05:10.8]} 13. Rb1 {[%clk 0:05:15.3]} 13... Rfc8 {[%clk 0:05:09.9]}
14. Ng5 {[%clk 0:05:16]} 14... h6 {[%clk 0:05:09.2]} 15. Ngf3 {[%clk 0:05:15.8]}
15... Bxf3 {[%clk 0:05:07.5]} 16. Qxf3 {[%clk 0:05:16.4]} 16... Qd8 {[%clk
0:05:05.8]} 17. Ne4 {[%clk 0:05:15.6]} 17... d5 {[%clk 0:05:06.3]} 18. Nxf6+
{[%clk 0:05:16.5]} 18... Nxf6 {[%clk 0:05:06.8]} 19. Qe2 {[%clk 0:05:11.6]}
19... Bf8 {[%clk 0:05:07.6]} 20. Bc1 {[%clk 0:05:05.8]} 20... Qc7 {[%clk
0:05:02.6]} 21. Bd2 {[%clk 0:05:06.3]} 21... Qb7 {[%clk 0:05:03.4]} 22. Rf3
{[%clk 0:05:05]} 22... Rc7 {[%clk 0:05:04.2]} 23. Rh3 {[%clk 0:04:59.9]} 23...
Ne4 {[%clk 0:04:49.9]} 24. Bxe4 {[%clk 0:04:59.3]} 24... dxe4 {[%clk 0:04:51.1]}
25. Qf2 {[%clk 0:05:00.6]} 25... Be7 {[%clk 0:04:50.7]} 26. Qg3 {[%clk
0:05:00.8]} 26... Kh7 {[%clk 0:04:49.7]} 27. Qg4 {[%clk 0:04:53.8]} 27... Bf6
{[%clk 0:04:50.7]} 28. f5 {[%clk 0:04:42.5]} 28... e5 {[%clk 0:04:46.8]} 29.
dxe5 {[%clk 0:04:40.6]} 29... Bxe5 {[%clk 0:04:47.6]} 30. Be1 {[%clk 0:04:37.2]}
30... Bf6 {[%clk 0:04:47.2]} 31. Bg3 {[%clk 0:04:36.8]} 31... Rc3 {[%clk
0:04:46]} 32. Bf4 {[%clk 0:04:37.2]} 32... Qc6 {[%clk 0:04:35]} 33. Rd1 {[%clk
0:04:34.9]} 33... Rc8 {[%clk 0:04:32.7]} 34. Qh5 {[%clk 0:04:27.7]} 34... Qc4
{[%clk 0:04:32.6]} 35. Bxh6 {[%clk 0:04:26.8]} 35... Kg8 {[%clk 0:04:16]} 36.
Bg5 {[%clk 0:04:15.6]} 36... Qc6 {[%clk 0:04:06.7]} 37. Qh8# {[%clk 0:04:14.5]}
1-0

[Event "Sera di Lampi"]
[Site "Chess.com"]
[Date "2020.04.18"]
[Round "1"]
[White "sirmale49"]
[Black "mr6701"]
[Result "0-1"]
[WhiteElo "1388"]
[BlackElo "1976"]
[TimeControl "300+2"]
[EndTime "11:38:50 PDT"]
[Termination "mr6701 ha vinto per tempo"]

1. e4 {[%clk 0:01:39.5]} 1... d5 {[%clk 0:04:59.5]} 2. exd5 {[%clk 0:01:22]}
2... Nf6 {[%clk 0:04:58.6]} 3. Nc3 {[%clk 0:01:18]} 3... Nxd5 {[%clk 0:04:59.2]}
4. Nxd5 {[%clk 0:01:18.5]} 4... Qxd5 {[%clk 0:05:00.3]} 5. Qe2 {[%clk
0:01:14.4]} 5... Nc6 {[%clk 0:04:58.8]} 6. Nf3 {[%clk 0:01:14.9]} 6... Bg4
{[%clk 0:04:59.2]} 7. h3 {[%clk 0:01:11.8]} 7... Bh5 {[%clk 0:04:59.7]} 8. c3
{[%clk 0:00:54.4]} 8... e5 {[%clk 0:04:59.2]} 9. d4 {[%clk 0:00:44.4]} 9... e4
{[%clk 0:04:59.6]} 10. c4 {[%clk 0:00:40.9]} 10... Bb4+ {[%clk 0:04:18.7]} 11.
Bd2 {[%clk 0:00:40.9]} 11... Qf5 {[%clk 0:04:10.1]} 12. g4 {[%clk 0:00:36.5]}
12... Qxf3 {[%clk 0:03:35.9]} 13. Qxf3 {[%clk 0:00:30.4]} 13... exf3 {[%clk
0:03:24.9]} 14. gxh5 {[%clk 0:00:30.8]} 14... Bxd2+ {[%clk 0:03:18.3]} 15. Kxd2
{[%clk 0:00:31.3]} 15... Nxd4 {[%clk 0:03:19.4]} 16. Re1+ {[%clk 0:00:07.9]}
16... Ne6 {[%clk 0:03:18]} 0-1

[Event "Sera di Lampi"]
[Site "Chess.com"]
[Date "2020.04.18"]
[Round "1"]
[White "SanSecondoPR"]
[Black "BAKR1980"]
[Result "0-1"]
[WhiteElo "1297"]
[BlackElo "1568"]
[TimeControl "300+2"]
[EndTime "11:41:37 PDT"]
[Termination "BAKR1980 ha vinto per tempo"]

1. e4 {[%clk 0:05:00.8]} 1... e5 {[%clk 0:05:00.5]} 2. d4 {[%clk 0:04:59.5]}
2... exd4 {[%clk 0:04:57.8]} 3. c3 {[%clk 0:04:59.6]} 3... dxc3 {[%clk 0:04:58]}
4. Bc4 {[%clk 0:05:00]} 4... cxb2 {[%clk 0:04:58.8]} 5. Bxb2 {[%clk 0:04:59.3]}
5... Bb4+ {[%clk 0:04:59.8]} 6. Nd2 {[%clk 0:04:57.3]} 6... Nf6 {[%clk
0:04:56.1]} 7. Bxf7+ {[%clk 0:04:56.1]} 7... Kxf7 {[%clk 0:04:56.2]} 8. Qb3+
{[%clk 0:04:56.5]} 8... d5 {[%clk 0:04:56.8]} 9. Qxb4 {[%clk 0:04:56.6]} 9...
Nc6 {[%clk 0:04:51]} 10. Qb3 {[%clk 0:04:55.2]} 10... Re8 {[%clk 0:04:42.1]} 11.
Ne2 {[%clk 0:04:49.2]} 11... Rb8 {[%clk 0:04:33.6]} 12. O-O {[%clk 0:04:48.3]}
12... Nxe4 {[%clk 0:04:32.4]} 13. Nxe4 {[%clk 0:04:39.6]} 13... Rxe4 {[%clk
0:04:30.1]} 14. Ng3 {[%clk 0:04:31.3]} 14... Re8 {[%clk 0:04:10.4]} 15. Rad1
{[%clk 0:04:17]} 15... Be6 {[%clk 0:04:09.3]} 16. Qc3 {[%clk 0:04:11.6]} 16...
Qg5 {[%clk 0:04:03.9]} 17. h4 {[%clk 0:03:53.3]} 17... Qg6 {[%clk 0:03:34.5]}
18. Qf3+ {[%clk 0:03:27.8]} 18... Kg8 {[%clk 0:03:28.8]} 19. h5 {[%clk
0:03:19.4]} 19... Qf7 {[%clk 0:03:21]} 20. Qc3 {[%clk 0:03:09.8]} 20... d4
{[%clk 0:03:15.5]} 21. Qd3 {[%clk 0:03:01.7]} 21... Bc4 {[%clk 0:03:03.4]} 22.
Qd2 {[%clk 0:02:32]} 22... Bxf1 {[%clk 0:03:03]} 23. Rxf1 {[%clk 0:02:29.5]}
23... Rbd8 {[%clk 0:03:02.8]} 24. Ne2 {[%clk 0:02:01]} 24... Qxa2 {[%clk
0:02:59.2]} 25. Ra1 {[%clk 0:01:49.6]} 25... Qe6 {[%clk 0:02:55.2]} 26. Nf4
{[%clk 0:01:36.8]} 26... Qe4 {[%clk 0:02:46.1]} 27. h6 {[%clk 0:01:20.2]} 27...
Rf8 {[%clk 0:02:38.4]} 28. g3 {[%clk 0:01:11.2]} 28... Ne5 {[%clk 0:02:30.6]}
29. Qb4 {[%clk 0:00:20.9]} 29... Nf3+ {[%clk 0:02:03.4]} 30. Kf1 {[%clk
0:00:12.3]} 30... d3 {[%clk 0:01:46.5]} 31. Qxe4 {[%clk 0:00:07.3]} 31... Nd2+
{[%clk 0:01:46.3]} 0-1

[Event "Sera di Lampi"]
[Site "Chess.com"]
[Date "2020.04.18"]
[Round "1"]
[White "pedrak"]
[Black "crippo"]
[Result "0-1"]
[WhiteElo "2060"]
[BlackElo "1567"]
[TimeControl "300+2"]
[EndTime "11:44:57 PDT"]
[Termination "crippo ha vinto per abbandono"]

1. d4 {[%clk 0:05:01.8]} 1... d5 {[%clk 0:04:58.6]} 2. Nf3 {[%clk 0:05:02.1]}
2... e6 {[%clk 0:04:59]} 3. Bf4 {[%clk 0:05:02.1]} 3... Nf6 {[%clk 0:04:59.8]}
4. e3 {[%clk 0:05:02.3]} 4... Bd6 {[%clk 0:04:59.6]} 5. Bg3 {[%clk 0:05:02.4]}
5... Bxg3 {[%clk 0:05:00]} 6. hxg3 {[%clk 0:05:02.7]} 6... Nc6 {[%clk
0:05:00.2]} 7. Nbd2 {[%clk 0:05:02.8]} 7... Bd7 {[%clk 0:05:01]} 8. c3 {[%clk
0:05:03.4]} 8... Qe7 {[%clk 0:05:01.7]} 9. Ne5 {[%clk 0:05:00.6]} 9... Ne4
{[%clk 0:04:57.8]} 10. Bd3 {[%clk 0:04:59.3]} 10... f5 {[%clk 0:04:57.1]} 11.
Nf1 {[%clk 0:04:47.6]} 11... O-O-O {[%clk 0:04:49.2]} 12. Nxc6 {[%clk
0:04:46.4]} 12... Bxc6 {[%clk 0:04:49.2]} 13. Qc2 {[%clk 0:04:34.4]} 13... Qd7
{[%clk 0:04:43.8]} 14. f3 {[%clk 0:04:26.5]} 14... Nd6 {[%clk 0:04:43.1]} 15.
O-O-O {[%clk 0:04:23.7]} 15... Ba4 {[%clk 0:04:40.3]} 16. b3 {[%clk 0:04:23.9]}
16... Bb5 {[%clk 0:04:41.2]} 17. Kb2 {[%clk 0:04:21.6]} 17... Kb8 {[%clk
0:04:40.5]} 18. Nd2 {[%clk 0:04:15.5]} 18... Rc8 {[%clk 0:04:38.1]} 19. Bxb5
{[%clk 0:03:46.9]} 19... Qxb5 {[%clk 0:04:30.8]} 20. a4 {[%clk 0:03:44.2]} 20...
Qd7 {[%clk 0:04:29.7]} 21. Ra1 {[%clk 0:03:41.9]} 21... c5 {[%clk 0:04:28.8]}
22. dxc5 {[%clk 0:03:30.8]} 22... Rxc5 {[%clk 0:04:28.6]} 23. Qd3 {[%clk
0:03:28.1]} 23... a6 {[%clk 0:04:27.7]} 24. b4 {[%clk 0:03:23.8]} 24... Rc7
{[%clk 0:04:19.8]} 25. Ra3 {[%clk 0:03:18.9]} 25... g6 {[%clk 0:04:15]} 26. Rd1
{[%clk 0:03:14.4]} 26... Rhc8 {[%clk 0:04:10.4]} 27. e4 {[%clk 0:03:01.5]} 27...
fxe4 {[%clk 0:04:08.8]} 28. fxe4 {[%clk 0:03:01.3]} 28... dxe4 {[%clk
0:03:59.8]} 29. Nxe4 {[%clk 0:02:52.6]} 29... Nc4+ {[%clk 0:03:57.4]} 30. Qxc4
{[%clk 0:01:25]} 30... Qxd1 {[%clk 0:03:52]} 31. Qxe6 {[%clk 0:01:25.7]} 31...
Qe2+ {[%clk 0:03:40.5]} 32. Kb3 {[%clk 0:01:20.8]} 32... Qxg2 {[%clk 0:03:30.3]}
33. Ra2 {[%clk 0:01:15.1]} 33... Qf3 {[%clk 0:03:28.9]} 34. Rc2 {[%clk
0:01:10.5]} 34... Ka8 {[%clk 0:03:26.3]} 35. Qe5 {[%clk 0:01:10.3]} 35... Qf7+
{[%clk 0:03:11.9]} 36. Kb2 {[%clk 0:01:08]} 36... Re7 {[%clk 0:03:03.2]} 37. Qd4
{[%clk 0:01:02.9]} 37... Qe6 {[%clk 0:02:46.4]} 38. Nc5 {[%clk 0:01:00.7]} 38...
Qc6 {[%clk 0:02:43.9]} 39. Rd2 {[%clk 0:00:57.3]} 39... Rec7 {[%clk 0:02:40.3]}
40. Rd3 {[%clk 0:00:53.8]} 40... Qg2+ {[%clk 0:02:33.5]} 41. Kb3 {[%clk
0:00:49.6]} 41... Qc6 {[%clk 0:02:29.7]} 42. Re3 {[%clk 0:00:45.5]} 42... Re8
{[%clk 0:02:22.7]} 43. Rxe8+ {[%clk 0:00:34.6]} 43... Qxe8 {[%clk 0:02:21.9]}
44. Qd5 {[%clk 0:00:35.3]} 44... Qf7 {[%clk 0:02:17.1]} 45. Ne6 {[%clk
0:00:34.4]} 45... Rd7 {[%clk 0:02:15.7]} 46. Qc4 {[%clk 0:00:29.5]} 46... Re7
{[%clk 0:02:07.2]} 47. Qc8+ {[%clk 0:00:28.4]} 47... Ka7 {[%clk 0:02:05.7]} 48.
Qc5+ {[%clk 0:00:29]} 48... Kb8 {[%clk 0:02:04.9]} 49. Qe5+ {[%clk 0:00:23]}
49... Ka8 {[%clk 0:01:55.8]} 50. Qc5 {[%clk 0:00:13.4]} 50... Qxe6+ {[%clk
0:01:54.8]} 51. Ka3 {[%clk 0:00:14.4]} 51... Re8 {[%clk 0:01:54.1]} 52. a5
{[%clk 0:00:14.1]} 52... Rc8 {[%clk 0:01:47.5]} 53. Qd4 {[%clk 0:00:14.7]} 53...
Qc6 {[%clk 0:01:46]} 54. Kb3 {[%clk 0:00:13.6]} 54... Qb5 {[%clk 0:01:38.5]} 55.
Qe4 {[%clk 0:00:12.8]} 55... Rd8 {[%clk 0:01:34.8]} 56. c4 {[%clk 0:00:13.1]}
56... Qd7 {[%clk 0:01:34.7]} 57. Kc3 {[%clk 0:00:13.6]} 57... Qg7+ {[%clk
0:01:34]} 58. Kb3 {[%clk 0:00:14.2]} 58... Qa1 {[%clk 0:01:25.5]} 59. c5 {[%clk
0:00:12.2]} 59... Qd1+ {[%clk 0:01:24.8]} 60. Kc3 {[%clk 0:00:12.7]} 60... Qc1+
{[%clk 0:01:24]} 61. Kb3 {[%clk 0:00:13.6]} 61... Qd2 {[%clk 0:01:18.3]} 62. Qe7
{[%clk 0:00:10.9]} 62... Qd3+ {[%clk 0:01:17.6]} 63. Kb2 {[%clk 0:00:11.6]}
63... Qd4+ {[%clk 0:01:11.3]} 64. Kb3 {[%clk 0:00:12.3]} 64... Qd5+ {[%clk
0:01:09.5]} 65. Kb2 {[%clk 0:00:12.9]} 65... Qd7 {[%clk 0:01:09.6]} 66. Qe4
{[%clk 0:00:13.2]} 66... Re8 {[%clk 0:01:09.4]} 67. Qc4 {[%clk 0:00:12.2]} 67...
Qd2+ {[%clk 0:01:06.9]} 68. Kb3 {[%clk 0:00:07.6]} 68... Re3+ {[%clk 0:01:07.4]}
69. Ka4 {[%clk 0:00:07.3]} 69... Qd1+ {[%clk 0:01:06.5]} 0-1

[Event "Sera di Lampi"]
[Site "Chess.com"]
[Date "2020.04.18"]
[Round "2"]
[White "SpessoInstabile"]
[Black "pedrak"]
[Result "0-1"]
[WhiteElo "1345"]
[BlackElo "2061"]
[TimeControl "300+2"]
[EndTime "11:50:02 PDT"]
[Termination "pedrak ha vinto per abbandono"]

1. d4 {[%clk 0:04:29.7]} 1... Nf6 {[%clk 0:04:59.3]} 2. c4 {[%clk 0:04:28]} 2...
d6 {[%clk 0:04:52.1]} 3. Nf3 {[%clk 0:04:29]} 3... Nbd7 {[%clk 0:04:51.7]} 4.
Nc3 {[%clk 0:04:30.2]} 4... e5 {[%clk 0:04:52.2]} 5. d5 {[%clk 0:04:30.6]} 5...
Be7 {[%clk 0:04:52.5]} 6. e4 {[%clk 0:04:31.3]} 6... O-O {[%clk 0:04:52.9]} 7.
Be2 {[%clk 0:04:32.6]} 7... a5 {[%clk 0:04:52.9]} 8. a3 {[%clk 0:04:32.7]} 8...
Nc5 {[%clk 0:04:53.4]} 9. Qc2 {[%clk 0:04:33.7]} 9... h6 {[%clk 0:04:47.7]} 10.
Be3 {[%clk 0:04:34.6]} 10... b6 {[%clk 0:04:47.7]} 11. Bxc5 {[%clk 0:04:35.5]}
11... bxc5 {[%clk 0:04:48]} 12. O-O {[%clk 0:04:36.5]} 12... Bg4 {[%clk
0:04:46]} 13. Ne1 {[%clk 0:04:35.8]} 13... Bxe2 {[%clk 0:04:45.9]} 14. Qxe2
{[%clk 0:04:37.1]} 14... Nh7 {[%clk 0:04:45.8]} 15. h3 {[%clk 0:04:38.3]} 15...
f5 {[%clk 0:04:46.4]} 16. exf5 {[%clk 0:04:38.3]} 16... Rxf5 {[%clk 0:04:46.7]}
17. Qe4 {[%clk 0:04:39.5]} 17... Rf7 {[%clk 0:04:43]} 18. Nf3 {[%clk 0:04:40.3]}
18... Nf6 {[%clk 0:04:43.3]} 19. Qe3 {[%clk 0:04:38.5]} 19... Qd7 {[%clk
0:04:43.1]} 20. Rfe1 {[%clk 0:04:39.2]} 20... Raf8 {[%clk 0:04:43]} 21. Nh2
{[%clk 0:04:38.1]} 21... Nh5 {[%clk 0:04:40.7]} 22. Re2 {[%clk 0:04:39.1]} 22...
Bg5 {[%clk 0:04:41]} 23. Qe4 {[%clk 0:04:27.8]} 23... Nf4 {[%clk 0:04:40.6]} 24.
Ree1 {[%clk 0:04:16.1]} 24... Nxh3+ {[%clk 0:04:16.5]} 25. gxh3 {[%clk
0:04:15.1]} 25... Qxh3 {[%clk 0:04:17]} 26. Qg2 {[%clk 0:04:15.7]} 26... Qh4
{[%clk 0:04:12.2]} 27. Re2 {[%clk 0:04:15.3]} 27... Bf4 {[%clk 0:04:10.4]} 28.
Nf3 {[%clk 0:04:13.9]} 28... Qh5 {[%clk 0:04:10.8]} 29. Rae1 {[%clk 0:03:53.5]}
29... Rf6 {[%clk 0:04:10.7]} 30. Nd2 {[%clk 0:03:49.5]} 30... Rg6 {[%clk
0:04:08.9]} 31. Qxg6 {[%clk 0:03:49]} 31... Qxg6+ {[%clk 0:04:09.5]} 32. Kh1
{[%clk 0:03:48.2]} 32... Qh5+ {[%clk 0:04:08.9]} 0-1

[Event "Sera di Lampi"]
[Site "Chess.com"]
[Date "2020.04.18"]
[Round "2"]
[White "ottovolante"]
[Black "rob_fio"]
[Result "1-0"]
[WhiteElo "1159"]
[BlackElo "1656"]
[TimeControl "300+2"]
[EndTime "11:52:33 PDT"]
[Termination "ottovolante ha vinto per abbandono"]

1. e4 {[%clk 0:04:59.4]} 1... d6 {[%clk 0:05:01.1]} 2. Nc3 {[%clk 0:04:53.7]}
2... Nf6 {[%clk 0:05:02.2]} 3. Nf3 {[%clk 0:04:50.9]} 3... Nbd7 {[%clk 0:05:03]}
4. d4 {[%clk 0:04:49.3]} 4... e5 {[%clk 0:05:02.9]} 5. Bg5 {[%clk 0:04:43.2]}
5... c6 {[%clk 0:05:02.3]} 6. dxe5 {[%clk 0:04:40.1]} 6... dxe5 {[%clk
0:05:02.7]} 7. Nxe5 {[%clk 0:04:37.6]} 7... Nxe5 {[%clk 0:04:58.6]} 8. Qxd8+
{[%clk 0:04:37.1]} 8... Kxd8 {[%clk 0:05:00.5]} 9. Bxf6+ {[%clk 0:04:24.9]} 9...
gxf6 {[%clk 0:05:00.1]} 10. O-O-O+ {[%clk 0:04:12.4]} 10... Kc7 {[%clk
0:04:59.9]} 11. h3 {[%clk 0:04:00.7]} 11... Be6 {[%clk 0:04:52.6]} 12. Be2
{[%clk 0:03:58.5]} 12... Bb4 {[%clk 0:04:46.9]} 13. f4 {[%clk 0:03:29.1]} 13...
Nc4 {[%clk 0:04:31]} 14. Bxc4 {[%clk 0:03:15.8]} 14... Bxc3 {[%clk 0:04:22.5]}
15. Bxe6 {[%clk 0:03:11.2]} 15... fxe6 {[%clk 0:04:22.4]} 16. bxc3 {[%clk
0:03:10.8]} 16... b5 {[%clk 0:04:16.6]} 17. Rd2 {[%clk 0:03:10]} 17... Rad8
{[%clk 0:04:15.7]} 18. Rhd1 {[%clk 0:03:08.1]} 18... Rxd2 {[%clk 0:04:15.3]} 19.
Rxd2 {[%clk 0:03:08.4]} 19... Rd8 {[%clk 0:04:17.2]} 20. Rxd8 {[%clk 0:03:00]}
20... Kxd8 {[%clk 0:04:19.1]} 21. Kd2 {[%clk 0:03:01.1]} 21... Kd7 {[%clk
0:04:17.7]} 22. Ke3 {[%clk 0:03:01.8]} 22... Ke7 {[%clk 0:04:18.8]} 23. g4
{[%clk 0:03:01.7]} 23... h6 {[%clk 0:04:19.1]} 24. h4 {[%clk 0:02:56.3]} 24...
a6 {[%clk 0:04:19.7]} 25. Kd4 {[%clk 0:02:56]} 25... Kd6 {[%clk 0:04:19.2]} 26.
c4 {[%clk 0:02:52.5]} 26... c5+ {[%clk 0:04:18.7]} 27. Kc3 {[%clk 0:02:50.6]}
27... b4+ {[%clk 0:04:19.4]} 28. Kd3 {[%clk 0:02:49.7]} 28... Ke7 {[%clk
0:04:08.2]} 29. c3 {[%clk 0:02:49.9]} 29... a5 {[%clk 0:04:08.6]} 30. cxb4
{[%clk 0:02:49.2]} 30... axb4 {[%clk 0:04:09.8]} 31. Kc2 {[%clk 0:02:49.3]}
31... Kd6 {[%clk 0:04:06.4]} 32. Kb2 {[%clk 0:02:49.7]} 32... f5 {[%clk
0:04:03.6]} 33. gxf5 {[%clk 0:02:41.2]} 33... exf5 {[%clk 0:04:04.5]} 34. e5+
{[%clk 0:02:36]} 34... Ke6 {[%clk 0:04:02.1]} 35. Kb3 {[%clk 0:02:36.6]} 35...
h5 {[%clk 0:03:54.2]} 36. a3 {[%clk 0:02:37.5]} 36... bxa3 {[%clk 0:03:51.3]}
37. Kxa3 {[%clk 0:02:38.4]} 37... Kd7 {[%clk 0:03:51.8]} 38. Ka4 {[%clk
0:02:39.5]} 38... Kc6 {[%clk 0:03:53]} 39. Ka5 {[%clk 0:02:40.3]} 39... Kc7
{[%clk 0:03:51.5]} 40. Kb5 {[%clk 0:02:41]} 40... Kd7 {[%clk 0:03:52.8]} 41.
Kxc5 {[%clk 0:02:41.8]} 41... Ke6 {[%clk 0:03:54]} 42. Kd4 {[%clk 0:02:41.9]}
42... Kd7 {[%clk 0:03:55]} 43. c5 {[%clk 0:02:42.6]} 43... Kc6 {[%clk
0:03:56.5]} 44. Kc4 {[%clk 0:02:41.8]} 44... Kd7 {[%clk 0:03:57.5]} 45. Kd5
{[%clk 0:02:41.9]} 45... Ke7 {[%clk 0:03:58.6]} 46. c6 {[%clk 0:02:42.5]} 46...
Kd8 {[%clk 0:03:59.4]} 47. e6 {[%clk 0:02:42.6]} 47... Kc7 {[%clk 0:04:00.6]}
48. e7 {[%clk 0:02:40.5]} 48... Kc8 {[%clk 0:03:59.5]} 1-0

[Event "Sera di Lampi"]
[Site "Chess.com"]
[Date "2020.04.18"]
[Round "2"]
[White "crippo"]
[Black "sirmale49"]
[Result "1-0"]
[WhiteElo "1571"]
[BlackElo "1384"]
[TimeControl "300+2"]
[EndTime "11:55:51 PDT"]
[Termination "crippo ha vinto per tempo"]

1. e4 {[%clk 0:04:56.5]} 1... e5 {[%clk 0:04:59.5]} 2. Nc3 {[%clk 0:04:55.9]}
2... Nc6 {[%clk 0:05:00.1]} 3. Nf3 {[%clk 0:04:56.9]} 3... Bc5 {[%clk
0:04:59.9]} 4. Bc4 {[%clk 0:04:57.8]} 4... Nf6 {[%clk 0:04:59.7]} 5. d3 {[%clk
0:04:58.8]} 5... O-O {[%clk 0:05:00.5]} 6. Bg5 {[%clk 0:04:58.7]} 6... Be7
{[%clk 0:05:01.1]} 7. Be3 {[%clk 0:04:59.2]} 7... d6 {[%clk 0:05:00.6]} 8. Qd2
{[%clk 0:05:00.2]} 8... Be6 {[%clk 0:05:00]} 9. Bb3 {[%clk 0:04:58.8]} 9... h6
{[%clk 0:04:53]} 10. h3 {[%clk 0:04:44.7]} 10... Na5 {[%clk 0:04:49.5]} 11. g4
{[%clk 0:04:44.4]} 11... Nxb3 {[%clk 0:04:49.8]} 12. axb3 {[%clk 0:04:44.6]}
12... Nd7 {[%clk 0:04:43]} 13. h4 {[%clk 0:04:38.9]} 13... Nf6 {[%clk
0:04:30.9]} 14. g5 {[%clk 0:04:37.4]} 14... Ng4 {[%clk 0:04:27.6]} 15. O-O-O
{[%clk 0:04:26.5]} 15... Nxe3 {[%clk 0:04:27.8]} 16. Qxe3 {[%clk 0:04:23.6]}
16... h5 {[%clk 0:04:18.5]} 17. Rdg1 {[%clk 0:04:21.5]} 17... g6 {[%clk
0:04:16.6]} 18. Nd2 {[%clk 0:04:21.3]} 18... c6 {[%clk 0:04:02.3]} 19. f4 {[%clk
0:04:21.6]} 19... f5 {[%clk 0:03:35.2]} 20. d4 {[%clk 0:04:11]} 20... exf4
{[%clk 0:03:22.2]} 21. Qxf4 {[%clk 0:04:11.1]} 21... d5 {[%clk 0:02:55.1]} 22.
Qe5 {[%clk 0:04:06]} 22... Qd7 {[%clk 0:02:44.8]} 23. exf5 {[%clk 0:03:57.8]}
23... Bd6 {[%clk 0:02:45]} 24. fxe6 {[%clk 0:03:53.8]} 24... Qe7 {[%clk
0:02:39.1]} 25. Qe3 {[%clk 0:03:48.7]} 25... Bf4 {[%clk 0:02:34.2]} 26. Qe2
{[%clk 0:03:49.1]} 26... Rae8 {[%clk 0:02:28.6]} 27. Kb1 {[%clk 0:03:39]} 27...
Bxd2 {[%clk 0:02:22.8]} 28. Qxd2 {[%clk 0:03:38.4]} 28... Qxe6 {[%clk
0:02:23.9]} 29. Qd3 {[%clk 0:03:39.3]} 29... Kg7 {[%clk 0:02:00.3]} 30. Rf1
{[%clk 0:03:38.5]} 30... Rf5 {[%clk 0:01:34.9]} 31. Rf3 {[%clk 0:03:12.5]} 31...
Ref8 {[%clk 0:01:24.6]} 32. Rxf5 {[%clk 0:02:56.3]} 32... Rxf5 {[%clk
0:01:19.2]} 33. Ka2 {[%clk 0:02:56.7]} 33... c5 {[%clk 0:01:17.2]} 34. dxc5
{[%clk 0:02:53]} 34... Qc6 {[%clk 0:00:45.1]} 35. Qd4+ {[%clk 0:02:49.8]} 35...
Kh7 {[%clk 0:00:40.9]} 36. Re1 {[%clk 0:02:48.7]} 36... Qa6+ {[%clk 0:00:06.1]}
37. Kb1 {[%clk 0:02:47.7]} 37... Rf1 {[%clk 0:00:04.6]} 38. Rd1 {[%clk
0:02:18.1]} 1-0

[Event "Sera di Lampi"]
[Site "Chess.com"]
[Date "2020.04.18"]
[Round "2"]
[White "mr6701"]
[Black "BAKR1980"]
[Result "1-0"]
[WhiteElo "1977"]
[BlackElo "1567"]
[TimeControl "300+2"]
[EndTime "11:58:02 PDT"]
[Termination "mr6701 ha vinto per scaccomatto"]

1. e4 {[%clk 0:05:01.9]} 1... e5 {[%clk 0:04:59.9]} 2. Nf3 {[%clk 0:05:02.5]}
2... Nc6 {[%clk 0:05:00.3]} 3. Bc4 {[%clk 0:05:03.4]} 3... Nf6 {[%clk
0:04:59.4]} 4. Nc3 {[%clk 0:05:03.1]} 4... Bc5 {[%clk 0:05:00.1]} 5. O-O {[%clk
0:05:00.4]} 5... O-O {[%clk 0:04:59.7]} 6. d3 {[%clk 0:05:00.4]} 6... d6 {[%clk
0:04:59.6]} 7. Bg5 {[%clk 0:05:00.7]} 7... Be6 {[%clk 0:04:59.8]} 8. Nd5 {[%clk
0:04:58.4]} 8... Bxd5 {[%clk 0:04:59.1]} 9. Bxd5 {[%clk 0:04:59.5]} 9... h6
{[%clk 0:04:57.6]} 10. Bh4 {[%clk 0:04:58.4]} 10... Rb8 {[%clk 0:04:57.4]} 11.
c3 {[%clk 0:04:57.7]} 11... Qe7 {[%clk 0:04:36.8]} 12. Qd2 {[%clk 0:04:57.9]}
12... Nd8 {[%clk 0:04:35.6]} 13. b4 {[%clk 0:04:55]} 13... Bb6 {[%clk
0:04:35.4]} 14. a4 {[%clk 0:04:53.8]} 14... a5 {[%clk 0:04:35.2]} 15. b5 {[%clk
0:04:54.3]} 15... c6 {[%clk 0:04:35.9]} 16. Ba2 {[%clk 0:04:47.1]} 16... Ne6
{[%clk 0:04:26.5]} 17. Rad1 {[%clk 0:04:38]} 17... Nf4 {[%clk 0:04:22.9]} 18. d4
{[%clk 0:04:34.5]} 18... Ng6 {[%clk 0:04:18.3]} 19. Bxf6 {[%clk 0:04:31]} 19...
Qxf6 {[%clk 0:04:11.5]} 20. c4 {[%clk 0:04:17.1]} 20... exd4 {[%clk 0:04:04.2]}
21. Nxd4 {[%clk 0:04:17]} 21... Bxd4 {[%clk 0:03:52.7]} 22. Qxd4 {[%clk
0:04:17.2]} 22... Qxd4 {[%clk 0:03:53]} 23. Rxd4 {[%clk 0:04:19.1]} 23... Rbd8
{[%clk 0:03:52.6]} 24. Rfd1 {[%clk 0:04:16.2]} 24... Rfe8 {[%clk 0:03:31.1]} 25.
Bb1 {[%clk 0:04:11]} 25... Ne5 {[%clk 0:03:15.5]} 26. c5 {[%clk 0:03:56.8]}
26... cxb5 {[%clk 0:02:58.8]} 27. axb5 {[%clk 0:03:54.5]} 27... Re6 {[%clk
0:02:46.1]} 28. cxd6 {[%clk 0:03:41]} 28... Nd7 {[%clk 0:02:40.6]} 29. Ba2
{[%clk 0:03:40]} 29... Re5 {[%clk 0:02:38.5]} 30. f4 {[%clk 0:03:25.3]} 30...
Rxb5 {[%clk 0:02:35.4]} 31. e5 {[%clk 0:03:26.5]} 31... Rb2 {[%clk 0:02:29.9]}
32. Bd5 {[%clk 0:02:35.5]} 32... Re8 {[%clk 0:02:09.8]} 33. Rc1 {[%clk
0:02:28.9]} 33... Nb6 {[%clk 0:01:41.2]} 34. Bxb7 {[%clk 0:02:28.7]} 34... a4
{[%clk 0:01:39.4]} 35. Ra1 {[%clk 0:01:45.8]} 35... Rb8 {[%clk 0:01:23.2]} 36.
Bc6 {[%clk 0:01:33.3]} 36... Rd8 {[%clk 0:00:59.9]} 37. Bxa4 {[%clk 0:01:25.8]}
37... Ra8 {[%clk 0:00:48.3]} 38. f5 {[%clk 0:01:14.4]} 38... f6 {[%clk
0:00:43.2]} 39. e6 {[%clk 0:01:03.1]} 39... Re2 {[%clk 0:00:37]} 40. e7 {[%clk
0:00:54.9]} 40... Nxa4 {[%clk 0:00:36]} 41. Raxa4 {[%clk 0:00:40.8]} 41... Rxa4
{[%clk 0:00:36.2]} 42. Rxa4 {[%clk 0:00:40.2]} 42... Kf7 {[%clk 0:00:34.7]} 43.
Ra8 {[%clk 0:00:36.7]} 43... Re1+ {[%clk 0:00:16.3]} 44. Kf2 {[%clk 0:00:36.8]}
44... Re5 {[%clk 0:00:17.4]} 45. Rf8# {[%clk 0:00:35.1]} 1-0